[Event "Werder IM-Turnier 2018"]
[Site "Bremen"]
[Date "2018.06.20"]
[Round "5"]
[White "Reuker, Jari"]
[Black "Kardoeus, David"]
[Result "1/2-1/2"]
[ECO "E71"]
[WhiteElo "2389"]
[BlackElo "2226"]
[Annotator "RC"]
[PlyCount "112"]
[EventDate "2018.06.16"]
[EventType "tourn"]
[EventCountry "GER"]
[SourceTitle "playchess.com"]
[Source "ChessBase"]
[SourceQuality "1"]
[TimeControl "40/5400+30:1800+30"]

1. d4 {[%emt 0:00:00]} Nf6 {[%emt 0:00:08]} 2. c4 {[%emt 0:00:00]} g6 {[%emt 0:00:08]} 3. Nc3 {[%emt 0:00:00]} Bg7 {[%emt 0:00:06]} 4. e4 {[%emt 0:00:00]} d6 {[%emt 0:00:05]} 5. h3 {[%emt 0:00:01]} O-O {[%emt 0:01:09]} 6. Be3 {[%emt 0:00:07]} e5 {[%emt 0:00:22]} 7. d5 {[%emt 0:00:14]} Nh5 {[%emt 0:01:50]} 8. Be2 {[%emt 0:00:27]} Nf4 {[%emt 0:01:14]} 9. Bf3 {[%emt 0:00:06]} g5 {[%emt 0:12:20]} 10. g3 {[%emt 0:01:19]} Ng6 {[%emt 0:00:12]} 11. Qd2 {[%emt 0:00:32]} h6 {[%emt 0:04:02]} 12. h4 {[%emt 0:15:10]} g4 {[%emt 0:11:41]} 13. Be2 {[%emt 0:06:02]} h5 {[%emt 0:06:11]} 14. f3 {[%emt 0:01:02]} f5 {[%emt 0:00:40]} 15. exf5 {[%emt 0:01:02]} Bxf5 {[%emt 0:00:07]} 16. fxg4 {[%emt 0:00:11]} hxg4 {[%emt 0:02:09]} 17. h5 {[%emt 0:00:20]} Ne7 {[%emt 0:00:42]} 18. h6 {[%emt 0:08:33]} Bf6 {[%emt 0:00:37]} 19. h7+ {[%emt 0:00:40]} Kh8 {[%emt 0:01:50]} 20. Bd3 {[%emt 0:02:09]} c6 {[%emt 0:05:03]} 21. O-O-O {[%emt 0:09:08]} cxd5 {[%emt 0:03:07]} 22. cxd5 {[%emt 0:02:27]} Qa5 {[%emt 0:07:55]} 23. Rf1 {[%emt 0:12:35]} Bxd3 {[%emt 0:01:06]} 24. Qxd3 {[%emt 0:00:27]} Na6 {[%emt 0:01:37]} 25. a3 {[%emt 0:09:28]} Rac8 {[%emt 0:05:16]} 26. Kb1 {[%emt 0:01:07]} Nc7 {[%emt 0:02:52]} 27. Bh6 {[%emt 0:03:37]} Bg7 {[%emt 0:13:41]} 28. Bxg7+ {[%emt 0:02:09]} Kxg7 {[%emt 0:00:03]} 29. Rxf8 {[%emt 0:03:38]} Rxf8 {[%emt 0:00:16]} 30. Qc4 {[%emt 0:01:24]} Kh8 {[%emt 0:02:41]} 31. Nge2 {[%emt 0:00:32]} Ncxd5 {[%emt 0:00:47]} 32. Qxg4 {[%emt 0:00:28]} Qa6 {[%emt 0:11:27]} 33. Qe6 {[%emt 0:07:56]} Qd3+ {[%emt 0:00:47]} 34. Ka1 {[%emt 0:03:42]} Nxc3 {[%emt 0:02:21]} 35. Nxc3 {[%emt 0:00:36]} Qf3 {[%emt 0:00:09]} 36. Rh6 {[%emt 0:06:30]} Nc8 {[%emt 0:00:45]} 37. Rg6 {[%emt 0:00:55]} Qf1+ {[%emt 0:00:16]} 38. Ka2 {[%emt 0:01:35]} Ne7 {[%emt 0:02:03]} 39. Qxe7 {[%emt 0:02:33]} Qc4+ {[%emt 0:00:13]} 40. Ka1 {[%emt 0:00:39]} Rf1+ {[%emt 0:30:06]} 41. Nb1 {[%emt 0:30:03]} Rxb1+ {[%emt 0:00:22]} 42. Kxb1 {[%emt 0:00:02]} Qd3+ {[%emt 0:02:15]} 43. Kc1 {[%emt 0:00:00]} Qxg6 {[%emt 0:00:00]} 44. Qxb7 {[%emt 0:00:00]} Qg5+ {[%emt 0:00:00]} 45. Kc2 {[%emt 0:00:00]} Qg6+ {[%emt 0:00:00]} 46. Kd2 {[%emt 0:00:00]} Qxg3 {[%emt 0:00:00]} 47. Qxa7 {[%emt 0:00:00]} Qg2+ {[%emt 0:00:00]} 48. Kc3 {[%emt 0:00:00]} Qc6+ {[%emt 0:00:00]} 49. Kd3 {[%emt 0:00:00]} Qf3+ {[%emt 0:00:00]} 50. Qe3 {[%emt 0:00:00]} Qf7 {[%emt 0:00:00]} 51. Ke4 {[%emt 0:00:00]} Qb7+ {[%emt 0:00:00]} 52. Kf5 {[%emt 0:00:00]} Qf7+ {[%emt 0:00:00]} 53. Kg4 {[%emt 0:00:00]} Qe6+ {[%emt 0:00:00]} 54. Kh4 {[%emt 0:00:00]} Kxh7 {[%emt 0:00:00]} 55. Qe4+ {[%emt 0:00:00]} Kg7 {[%emt 0:01:59]} 56. Qg4+ {[%emt 0:00:00]} Qxg4+ {[%emt 0:01:07]} 1/2-1/2

[Event "Werder IM-Turnier 2018"]
[Site "Bremen"]
[Date "2018.06.20"]
[Round "5"]
[White "Wachinger, Nikolas"]
[Black "Grigorian, Spartak"]
[Result "1/2-1/2"]
[ECO "C10"]
[WhiteElo "2292"]
[BlackElo "2359"]
[Annotator "NA"]
[PlyCount "70"]
[EventDate "2018.06.16"]
[EventType "tourn"]
[EventCountry "GER"]
[SourceTitle "playchess.com"]
[Source "ChessBase"]
[SourceQuality "1"]
[TimeControl "40/5400+30:1800+30"]

1. e4 {[%emt 0:00:00]} e6 {[%emt 0:00:05]} 2. d4 {[%emt 0:00:00]} d5 {[%emt 0:00:04]} 3. Nd2 {[%emt 0:00:41]} dxe4 {[%emt 0:00:08]} 4. Nxe4 {[%emt 0:00:10]} Nd7 {[%emt 0:00:02]} 5. Nf3 {[%emt 0:00:28]} Ngf6 {[%emt 0:00:11]} 6. Bd3 {[%emt 0:00:28]} c5 {[%emt 0:00:06]} 7. Bg5 {[%emt 0:03:28] C10: French with 3 Nc3: Unusual Black 3rd moves and 3...dxe4} (7. O-O Nxe4 8. Bxe4 Nf6 9. Bg5 cxd4 10. Nxd4 Be7 11. Bf3 O-O 12. Qd3 Bc5 13. Rad1 e5 14. Nb3 Qxd3 15. cxd3 Bb6 16. Rfe1 h6 17. Bh4 Be6 18. Rxe5 Rac8 19. Re2 Rfd8 20. h3 Rd7 21. Rc1 Rcd8 22. Bxf6 {½-½ (22) Alekseev,E (2616)-Meier,G (2647) Tallinn 2018}) 7... cxd4 {[%emt 0:00:20]} 8. O-O {[%emt 0:02:13]} Qb6 {[%emt 0:29:48]} 9. Bxf6 $146 {[%emt 0:05:01]} ({Predecessor:} 9. Qe2 h6 10. Nxf6+ gxf6 11. Bh4 Be7 12. Rad1 Qxb2 13. Bc4 e5 14. Rfe1 Qa3 15. Nd2 {1-0 (28) Boehm,J (2158)-Beutelhoff,J (2085) Senden 2013}) 9... Nxf6 {[%emt 0:05:40]} 10. Nxf6+ {[%emt 0:00:36]} gxf6 {[%emt 0:00:01]} 11. Nxd4 {[%emt 0:00:31]} Bd7 {[%emt 0:00:04]} 12. c3 {[%emt 0:12:03]} Bc5 {[%emt 0:07:09]} 13. Nb3 {[%emt 0:02:57]} Bc6 {[%emt 0:06:51]} 14. Qh5 {[%emt 0:10:20]} Rg8 {[%emt 0:23:31]} 15. g3 {[%emt 0:00:42]} Rg5 {[%emt 0:00:02]} 16. Qxh7 {[%emt 0:06:17]} Ke7 {[%emt 0:00:07]} 17. Be2 {[%emt 0:03:32]} Rag8 {[%emt 0:03:59]} 18. Nxc5 {[%emt 0:07:22]} Qxc5 {[%emt 0:00:20]} 19. Qd3 {[%emt 0:01:05]} Rd8 {[%emt 0:12:36]} 20. Qc4 {[%emt 0:04:05]} Rd2 {[%emt 0:05:17]} 21. b4 {[%emt 0:03:29]} Qf5 {[%emt 0:01:48]} 22. b5 {[%emt 0:20:11]} ({Lieber} 22. Rad1 $11 Qh3 23. f3 Rxg3+ 24. hxg3 Qxg3+ 25. Kh1 Qh3+ 26. Kg1 Qg3+ 27. Kh1 Qh3+ 28. Kg1 Qg3+) 22... Qxb5 {[%emt 0:00:06]} 23. Qxb5 {[%emt 0:00:25]} Bxb5 {[%emt 0:00:01]} 24. Bxb5 {[%emt 0:00:32]} Rxb5 {[%emt 0:00:01]} 25. Rfd1 {[%emt 0:00:58]} Rxd1+ {[%emt 0:00:47]} 26. Rxd1 {[%emt 0:00:01]} Rb2 {[%emt 0:00:06]} 27. a4 {[%emt 0:01:00]} Rb3 {[%emt 0:00:04]} 28. c4 {[%emt 0:00:42]} Rb4 {[%emt 0:00:38]} 29. c5 {[%emt 0:00:03]} a5 {[%emt 0:01:19]} 30. Kf1 $1 {[%emt 0:02:08]} f5 {[%emt 0:01:54]} 31. Ke2 {[%emt 0:00:41]} e5 $11 {[%emt 0:01:45]} 32. Rd5 {[%emt 0:04:12]} f6 {[%emt 0:00:00]} 33. c6 {[%emt 0:00:34]} Rxa4 {[%emt 0:00:28]} 34. cxb7 {[%emt 0:00:18]} Rb4 {[%emt 0:00:25]} 35. Rxa5 {[%emt 0:00:10]} Rxb7 {[%emt 0:00:06]} 1/2-1/2

[Event "Werder IM-Turnier 2018"]
[Site "Bremen"]
[Date "2018.06.21"]
[Round "6"]
[White "Grigorian, Spartak"]
[Black "Charmeteau, Sven"]
[Result "0-1"]
[ECO "E99"]
[WhiteElo "2359"]
[BlackElo "2287"]
[Annotator "NA"]
[PlyCount "84"]
[EventDate "2018.06.16"]
[EventType "tourn"]
[EventCountry "GER"]
[SourceTitle "playchess.com"]
[Source "ChessBase"]
[SourceQuality "1"]
[TimeControl "40/5400+30:1800+30"]

1. d4 {[%emt 0:00:00]} Nf6 {[%emt 0:00:07]} 2. c4 {[%emt 0:00:00]} g6 {[%emt 0:00:11]} 3. Nc3 {[%emt 0:00:00]} Bg7 {[%emt 0:04:14]} 4. e4 {[%emt 0:00:00]} d6 {[%emt 0:00:09]} 5. Nf3 {[%emt 0:01:39]} O-O {[%emt 0:00:17]} 6. Be2 {[%emt 0:00:03]} e5 {[%emt 0:01:31]} 7. O-O {[%emt 0:00:29]} Nc6 {[%emt 0:00:35]} 8. d5 {[%emt 0:00:12]} Ne7 {[%emt 0:00:15]} 9. Ne1 {[%emt 0:00:06]} Nd7 {[%emt 0:01:35]} 10. Be3 {[%emt 0:00:56]} a5 {[%emt 0:05:45]} 11. Nd3 {[%emt 0:05:46]} f5 {[%emt 0:10:20]} 12. f3 {[%emt 0:00:18]} f4 {[%emt 0:01:55]} 13. Bf2 {[%emt 0:00:14]} b6 {[%emt 0:01:47]} 14. a3 {[%emt 0:00:42]} g5 {[%emt 0:04:28]} 15. b4 {[%emt 0:01:36]} h5 {[%emt 0:00:49]} 16. c5 {[%emt 0:00:34]} Kh8 {[%emt 0:05:12]} 17. cxd6 {[%emt 0:09:01]} cxd6 {[%emt 0:00:02]} 18. Nb5 {[%emt 0:00:02]} Nf6 {[%emt 0:00:41]} 19. Nb2 {[%emt 0:02:08]} Ne8 {[%emt 0:08:33]} 20. Nc4 {[%emt 0:05:52]} Rb8 {[%emt 0:00:31]} 21. Rb1 {[%emt 0:05:13]} a4 {[%emt 0:11:28]} 22. Na7 {[%emt 0:03:25]} b5 {[%emt 0:06:24]} 23. Na5 {[%emt 0:07:21]} Bd7 {[%emt 0:00:49]} 24. Rc1 {[%emt 0:00:04]} g4 {[%emt 0:04:46]} 25. fxg4 {[%emt 0:04:09]} Nf6 {[%emt 0:00:30]} 26. N5c6 {[%emt 0:05:04]} Qe8 {[%emt 0:00:50]} 27. Nxb8 {[%emt 0:00:41]} Qxb8 {[%emt 0:00:17]} 28. Nc6 {[%emt 0:05:40]} Qe8 {[%emt 0:02:27]} 29. Nxe7 {[%emt 0:02:06]} Qxe7 {[%emt 0:00:08]} 30. g5 {[%emt 0:01:21]} Nxe4 {[%emt 0:00:34]} 31. Bd3 {[%emt 0:00:28]} Bg4 {[%emt 0:00:24]} 32. Qe1 {[%emt 0:06:17]} Nxf2 {[%emt 0:02:09]} 33. Rxf2 {[%emt 0:07:46]} Qxg5 {[%emt 0:05:58]} 34. Rc7 {[%emt 0:04:36]} f3 {[%emt 0:12:32]} 35. Qe4 {[%emt 0:11:18]} Bf5 {[%emt 0:01:29]} 36. Qxf3 {[%emt 0:04:36]} e4 {[%emt 0:00:21]} 37. Rxg7 {[%emt 0:02:50]} Qc1+ {[%emt 0:01:49]} 38. Rf1 {[%emt 0:00:03]} exf3 {[%emt 0:00:12]} 39. Rxc1 {[%emt 0:00:02]} Bxd3 {[%emt 0:00:23]} 40. gxf3 {[%emt 0:04:08]} Kxg7 {[%emt 0:30:16]} 41. Rc6 {[%emt 0:03:17]} Rf6 {[%emt 0:00:00]} 42. Kf2 {[%emt 0:00:32]} Be4 {[%emt 0:00:00]} 0-1

[Event "Werder IM-Turnier 2018"]
[Site "Bremen"]
[Date "2018.06.21"]
[Round "6"]
[White "Wachinger, Nikolas"]
[Black "Reuker, Jari"]
[Result "0-1"]
[ECO "C90"]
[WhiteElo "2292"]
[BlackElo "2389"]
[Annotator "NA"]
[PlyCount "78"]
[EventDate "2018.06.16"]
[EventType "tourn"]
[EventCountry "GER"]
[SourceTitle "playchess.com"]
[Source "ChessBase"]
[SourceQuality "1"]
[TimeControl "40/5400+30:1800+30"]

1. e4 {[%emt 0:00:00]} e5 {[%emt 0:00:07]} 2. Nf3 {[%emt 0:00:00]} Nc6 {[%emt 0:00:05]} 3. Bb5 {[%emt 0:00:00]} a6 {[%emt 0:00:05]} 4. Ba4 {[%emt 0:00:00]} Nf6 {[%emt 0:00:46]} 5. O-O {[%emt 0:00:07]} Be7 {[%emt 0:00:05]} 6. d3 {[%emt 0:00:11]} b5 {[%emt 0:00:15]} 7. Bb3 {[%emt 0:00:11]} d6 {[%emt 0:00:06]} 8. c3 {[%emt 0:00:20]} O-O {[%emt 0:01:31]} 9. Re1 {[%emt 0:00:18]} Na5 {[%emt 0:00:11]} 10. Bc2 {[%emt 0:00:09]} c5 {[%emt 0:00:05]} 11. Nbd2 {[%emt 0:00:08]} Nc6 {[%emt 0:00:29]} 12. Nf1 {[%emt 0:00:16]} Qc7 {[%emt 0:01:54]} 13. Ne3 {[%emt 0:04:36]} Be6 {[%emt 0:03:29]} 14. h3 {[%emt 0:05:30]} d5 {[%emt 0:03:02]} 15. exd5 {[%emt 0:25:59]} Nxd5 {[%emt 0:00:06]} 16. Ng4 {[%emt 0:01:50]} f6 {[%emt 0:01:58]} 17. d4 {[%emt 0:23:08]} cxd4 {[%emt 0:00:57]} 18. cxd4 {[%emt 0:00:38]} Rad8 {[%emt 0:02:03]} 19. Qd3 {[%emt 0:10:24]} f5 {[%emt 0:19:14]} 20. Nh6+ {[%emt 0:20:35]} gxh6 {[%emt 0:04:22]} 21. Nxe5 {[%emt 0:00:09]} Ncb4 {[%emt 0:22:56]} 22. Qg3+ {[%emt 0:00:22]} Kh8 {[%emt 0:37:44]} 23. Bb3 {[%emt 0:03:38]} f4 {[%emt 0:00:00]} 24. Qf3 {[%emt 0:00:48]} Rf6 {[%emt 0:00:00]} 25. Bd2 {[%emt 0:00:21]} Nc2 {[%emt 0:00:00]} 26. Rec1 {[%emt 0:02:38]} Nxd4 {[%emt 0:00:00]} 27. Qe4 {[%emt 0:00:28]} Qb6 {[%emt 0:00:00]} 28. Ng4 {[%emt 0:00:22]} Nxb3 {[%emt 0:00:00]} 29. axb3 {[%emt 0:00:29]} Bxg4 {[%emt 0:00:00]} 30. hxg4 {[%emt 0:00:51]} Qe6 {[%emt 0:00:00]} 31. Qf3 {[%emt 0:00:08]} Rg6 {[%emt 0:00:00]} 32. Bxf4 {[%emt 0:01:26]} Nxf4 {[%emt 0:00:00]} 33. Qxf4 {[%emt 0:00:00]} Rxg4 {[%emt 0:00:00]} 34. Qf3 {[%emt 0:00:14]} Rdg8 {[%emt 0:00:00]} 35. Rc6 {[%emt 0:00:35]} Rxg2+ {[%emt 0:00:54]} 36. Kh1 {[%emt 0:00:02]} Qe5 {[%emt 0:01:21]} 37. Rxh6 {[%emt 0:00:26]} Rg1+ {[%emt 0:03:24]} 38. Rxg1 {[%emt 0:00:17]} Rxg1+ {[%emt 0:00:03]} 39. Kxg1 {[%emt 0:00:07]} Qg5+ {[%emt 0:00:28]} 0-1

[Event "Werder IM-Turnier 2018"]
[Site "Bremen"]
[Date "2018.06.21"]
[Round "6"]
[White "Kardoeus, David"]
[Black "Grabarczyk, Miroslaw"]
[Result "0-1"]
[ECO "C45"]
[WhiteElo "2226"]
[BlackElo "2402"]
[Annotator "NA"]
[PlyCount "78"]
[EventDate "2018.06.16"]
[EventType "tourn"]
[EventCountry "GER"]
[SourceTitle "playchess.com"]
[Source "ChessBase"]
[SourceQuality "1"]
[TimeControl "40/5400+30:1800+30"]

1. e4 {[%emt 0:00:00]} e5 {[%emt 0:00:16]} 2. Nf3 {[%emt 0:00:00]} Nc6 {[%emt 0:00:21]} 3. d4 {[%emt 0:00:03]} exd4 {[%emt 0:00:22]} 4. Nxd4 {[%emt 0:00:11]} Bb4+ {[%emt 0:01:13]} 5. c3 {[%emt 0:00:21]} Bc5 {[%emt 0:00:08]} 6. Nxc6 {[%emt 0:00:17]} bxc6 {[%emt 0:00:47]} 7. Bc4 {[%emt 0:00:25]} d6 {[%emt 0:08:15]} 8. O-O {[%emt 0:01:38]} Ne7 {[%emt 0:06:17]} 9. Qh5 {[%emt 0:00:29]} O-O {[%emt 0:00:27]} 10. Bg5 {[%emt 0:00:11]} Qe8 {[%emt 0:06:04]} 11. Nd2 {[%emt 0:10:15]} Be6 {[%emt 0:01:17]} 12. Bxe7 {[%emt 0:13:35]} Qxe7 {[%emt 0:00:17]} 13. Ba6 {[%emt 0:00:53]} Bc8 {[%emt 0:04:57]} 14. Qe2 {[%emt 0:01:25]} d5 {[%emt 0:06:08]} 15. b4 {[%emt 0:07:37]} Bd6 {[%emt 0:02:14]} 16. Bxc8 {[%emt 0:01:38]} Raxc8 {[%emt 0:07:28]} 17. f4 {[%emt 0:03:08]} a5 {[%emt 0:11:51]} 18. bxa5 {[%emt 0:04:07]} Ra8 {[%emt 0:00:34]} 19. a6 {[%emt 0:02:51]} Ba3 {[%emt 0:05:18]} 20. Rab1 {[%emt 0:05:20]} Qc5+ {[%emt 0:05:04]} 21. Kh1 {[%emt 0:00:08]} Qxc3 {[%emt 0:00:11]} 22. Rf3 {[%emt 0:01:10]} Qa5 {[%emt 0:00:11]} 23. Rh3 {[%emt 0:10:15]} Rxa6 {[%emt 0:07:04]} 24. exd5 {[%emt 0:02:24]} cxd5 {[%emt 0:02:32]} 25. Rb5 {[%emt 0:00:06]} Qa4 {[%emt 0:00:27]} 26. Rxd5 {[%emt 0:04:24]} Rd6 {[%emt 0:11:53]} 27. Qd3 {[%emt 0:04:25]} h6 {[%emt 0:01:23]} 28. Nc4 {[%emt 0:01:54]} Re8 {[%emt 0:02:53]} 29. Re3 {[%emt 0:12:40]} Rxd5 {[%emt 0:04:12]} 30. Qxd5 {[%emt 0:00:16]} Rxe3 {[%emt 0:00:18]} 31. Nxe3 {[%emt 0:00:16]} Bd6 {[%emt 0:03:21]} 32. g3 {[%emt 0:05:06]} Qa3 {[%emt 0:00:08]} 33. Nf5 {[%emt 0:01:34]} Bf8 {[%emt 0:01:04]} 34. Kg2 {[%emt 0:01:32]} g6 {[%emt 0:00:31]} 35. Nh4 {[%emt 0:02:30]} Qa6 {[%emt 0:00:40]} 36. f5 {[%emt 0:02:15]} g5 {[%emt 0:01:02]} 37. Nf3 {[%emt 0:02:15]} Qe2+ {[%emt 0:00:22]} 38. Kh3 {[%emt 0:00:46]} h5 {[%emt 0:00:37]} 39. f6 {[%emt 0:00:17]} Qf1# {[%emt 0:00:17] Nh4 [%clk 0:00:00]} 0-1

[Event "Werder IM-Turnier 2018"]
[Site "Bremen"]
[Date "2018.06.22"]
[Round "7"]
[White "Grabarczyk, Miroslaw"]
[Black "Wachinger, Nikolas"]
[Result "1-0"]
[ECO "E60"]
[WhiteElo "2402"]
[BlackElo "2292"]
[Annotator "ChessBase"]
[PlyCount "101"]
[EventDate "2018.06.16"]
[EventType "tourn"]
[EventCountry "GER"]
[SourceTitle "playchess.com"]
[Source "ChessBase"]
[SourceQuality "1"]
[TimeControl "40/5400+30:1800+30"]

1. d4 {[%emt 0:00:00]} Nf6 {[%emt 0:00:07]} 2. c4 {[%emt 0:00:00]} g6 {[%emt 0:00:11]} 3. Nf3 {[%emt 0:00:51]} Bg7 {[%emt 0:00:15]} 4. g3 {[%emt 0:02:32]} c5 {[%emt 0:00:48]} 5. d5 {[%emt 0:00:51]} b5 {[%emt 0:01:05]} 6. cxb5 {[%emt 0:00:36]} a6 {[%emt 0:00:38]} 7. bxa6 {[%emt 0:00:51]} d6 {[%emt 0:00:34]} 8. Bg2 {[%emt 0:01:32]} O-O {[%emt 0:00:26]} 9. O-O {[%emt 0:00:58]} Nxa6 {[%emt 0:00:17]} 10. Nc3 {[%emt 0:01:54]} Bf5 {[%emt 0:00:13]} 11. Nd2 {[%emt 0:15:51]} Nb4 {[%emt 0:00:17]} 12. Nc4 {[%emt 0:00:24]} Bc2 {[%emt 0:00:16]} 13. Qd2 {[%emt 0:08:53]} Bb3 {[%emt 0:00:17]} 14. Na3 {[%emt 0:00:57]} Bxd5 {[%emt 0:00:15]} 15. Nxd5 {[%emt 0:00:21]} Nfxd5 {[%emt 0:00:09]} 16. Nc4 {[%emt 0:00:54]} Nc7 {[%emt 0:00:25]} 17. Bxa8 {[%emt 0:01:42]} Qxa8 {[%emt 0:00:08]} 18. a3 {[%emt 0:03:44]} Nc6 {[%emt 0:00:10]} 19. Rb1 {[%emt 0:07:01]} d5 {[%emt 0:16:40]} 20. Nb6 {[%emt 0:07:56]} Qd8 {[%emt 0:04:30]} 21. b3 {[%emt 0:03:20]} Nd4 {[%emt 0:01:56]} 22. Qd1 {[%emt 0:03:56]} Ncb5 {[%emt 0:07:33]} 23. Na4 {[%emt 0:00:13]} c4 {[%emt 0:00:37]} 24. bxc4 {[%emt 0:08:50]} dxc4 {[%emt 0:00:16]} 25. e3 {[%emt 0:03:30]} Nb3 {[%emt 0:01:42]} 26. Qxd8 {[%emt 0:06:09]} Rxd8 {[%emt 0:00:12]} 27. Bb2 {[%emt 0:00:06]} Nd2 {[%emt 0:27:18]} 28. Bxg7 {[%emt 0:00:58]} Nxa3 {[%emt 0:01:54]} 29. Ra1 {[%emt 0:05:58]} Nxf1 {[%emt 0:02:34]} 30. Kxf1 {[%emt 0:02:15]} Nc2 {[%emt 0:00:56]} 31. Rc1 {[%emt 0:00:12]} Nxe3+ {[%emt 0:00:35]} 32. fxe3 {[%emt 0:00:18]} Kxg7 {[%emt 0:00:06]} 33. Ke2 {[%emt 0:00:53]} Rd5 {[%emt 0:00:50]} 34. Rxc4 {[%emt 0:00:25]} Rh5 {[%emt 0:00:23]} 35. h4 {[%emt 0:00:17]} Rb5 {[%emt 0:01:34]} 36. Nc3 {[%emt 0:00:24]} Rb7 {[%emt 0:01:16]} 37. Kf3 {[%emt 0:04:10]} h6 {[%emt 0:02:06]} 38. Rc5 {[%emt 0:02:03]} Rd7 {[%emt 0:00:49]} 39. Nb5 {[%emt 0:00:19]} Rb7 {[%emt 0:01:03]} 40. Nc7 {[%emt 0:00:27]} Rb8 {[%emt 0:33:14]} 41. Nd5 {[%emt 0:31:17]} e6 {[%emt 0:00:44]} 42. Nc7 {[%emt 0:03:04]} Kf6 {[%emt 0:00:54]} 43. Nb5 {[%emt 0:00:32]} Rb6 {[%emt 0:06:21]} 44. Nc3 {[%emt 0:00:22]} Rb7 {[%emt 0:00:28]} 45. g4 {[%emt 0:00:56]} Ke7 {[%emt 0:05:36]} 46. Nb5 {[%emt 0:02:49]} Rb6 {[%emt 0:02:40]} 47. Kf4 {[%emt 0:00:00]} Kf6 {[%emt 0:00:00]} 48. g5+ {[%emt 0:00:00]} hxg5+ {[%emt 0:00:00]} 49. hxg5+ {[%emt 0:00:00]} Ke7 {[%emt 0:00:00]} 50. Ke5 {[%emt 0:00:00]} Ra6 {[%emt 0:00:00]} 51. Rc7+ {[%emt 0:00:00]} 1-0

[Event "Werder IM-Turnier 2018"]
[Site "Bremen"]
[Date "2018.06.22"]
[Round "7"]
[White "Skliarov, Viktor"]
[Black "Kardoeus, David"]
[Result "1-0"]
[ECO "B50"]
[WhiteElo "2359"]
[BlackElo "2226"]
[Annotator "ChessBase"]
[PlyCount "95"]
[EventDate "2018.06.16"]
[EventType "tourn"]
[EventCountry "GER"]
[SourceTitle "playchess.com"]
[Source "ChessBase"]
[SourceQuality "1"]
[TimeControl "40/5400+30:1800+30"]

1. e4 {[%emt 0:00:00]} c5 {[%emt 0:00:21]} 2. Nf3 {[%emt 0:00:00]} d6 {[%emt 0:00:35]} 3. c3 {[%emt 0:06:04]} Nf6 {[%emt 0:01:15]} 4. Bd3 {[%emt 0:01:09]} Nc6 {[%emt 0:01:22]} 5. Bc2 {[%emt 0:00:10]} Bg4 {[%emt 0:01:39]} 6. h3 {[%emt 0:00:07]} Bh5 {[%emt 0:00:29]} 7. d3 {[%emt 0:05:41]} e6 {[%emt 0:04:21]} 8. Nbd2 {[%emt 0:02:59]} d5 {[%emt 0:01:50]} 9. Qe2 {[%emt 0:10:03]} Qc7 {[%emt 0:03:03]} 10. g4 {[%emt 0:10:03]} Bg6 {[%emt 0:04:30]} 11. Nh4 {[%emt 0:17:30]} Bd6 {[%emt 0:04:01]} 12. Ndf3 {[%emt 0:03:45]} O-O-O {[%emt 0:04:02]} 13. Bg5 {[%emt 0:02:33]} dxe4 {[%emt 0:04:06]} 14. dxe4 {[%emt 0:00:55]} Bf4 {[%emt 0:01:59]} 15. Bxf4 {[%emt 0:02:17]} Qxf4 {[%emt 0:00:11]} 16. Ng2 {[%emt 0:00:05]} Qc7 {[%emt 0:02:47]} 17. O-O {[%emt 0:01:42]} Nd7 {[%emt 0:16:13]} 18. Rad1 {[%emt 0:03:07]} f6 {[%emt 0:06:26]} 19. Nfh4 {[%emt 0:06:28]} Bf7 {[%emt 0:02:08]} 20. f4 {[%emt 0:00:18]} h6 {[%emt 0:08:26]} 21. Ne3 {[%emt 0:11:12]} g5 {[%emt 0:03:04]} 22. Nhg2 {[%emt 0:03:19]} h5 {[%emt 0:09:59]} 23. Nc4 {[%emt 0:00:59]} Nb6 {[%emt 0:00:10]} 24. Rxd8+ {[%emt 0:01:40]} Rxd8 {[%emt 0:00:08]} 25. Nce3 {[%emt 0:04:01]} hxg4 {[%emt 0:07:33]} 26. Qxg4 {[%emt 0:01:03]} Rg8 {[%emt 0:01:15]} 27. fxg5 {[%emt 0:02:31]} Ne5 {[%emt 0:02:41]} 28. Qg3 {[%emt 0:00:13]} Rxg5 {[%emt 0:00:23]} 29. Qf4 {[%emt 0:00:13]} Nbd7 {[%emt 0:00:54]} 30. Ba4 {[%emt 0:00:50]} Nb6 {[%emt 0:01:41]} 31. Bd1 {[%emt 0:00:37]} Qd6 {[%emt 0:01:14]} 32. Bg4 {[%emt 0:00:46]} Nbd7 {[%emt 0:00:39]} 33. Rd1 {[%emt 0:01:06]} Qb6 {[%emt 0:00:07]} 34. Rd2 {[%emt 0:00:15]} c4 {[%emt 0:00:35]} 35. Kh1 {[%emt 0:00:47]} Qc5 {[%emt 0:01:50]} 36. b4 {[%emt 0:00:53]} Qf8 {[%emt 0:00:15]} 37. Be2 {[%emt 0:01:56]} Qh6 {[%emt 0:01:07]} 38. h4 {[%emt 0:00:36]} Qh8 {[%emt 0:02:02]} 39. Nxc4 {[%emt 0:00:29]} Nxc4 {[%emt 0:01:03]} 40. Bxc4 {[%emt 0:00:14]} Ne5 {[%emt 0:33:07]} 41. Be2 {[%emt 0:01:55]} Be8 {[%emt 0:00:00]} 42. Qe3 {[%emt 0:06:20]} Kb8 {[%emt 0:00:00]} 43. Rd8+ {[%emt 0:01:32]} Kc7 {[%emt 0:00:00]} 44. Rxe8 {[%emt 0:00:08]} Qxe8 {[%emt 0:00:00]} 45. hxg5 {[%emt 0:00:06]} Qh8+ {[%emt 0:00:00]} 46. Kg1 {[%emt 0:00:06]} fxg5 {[%emt 0:00:00]} 47. Qxg5 {[%emt 0:00:19]} Nc6 {[%emt 0:00:00]} 48. b5 {[%emt 0:00:27]} 1-0